bitfinex/quotes_ETHUSD_20260227
["timestamp","ask_amount","ask_price","bid_price","bid_amount"]
[1772206793653,1.28310408,1948.4,1947.8,1.28349933]
[1772206794361,1.97503044,1948.4,1947.8,1.28349933]
[1772206795367,1.97503044,1948.4,1947.8,1.28459933]
[1772206796360,1.2840737,1948.5,1947.9,0.67522696]
[1772206796527,0.69192636,1948.4,1947.8,0.0011]
[1772206796933,0.69192636,1948.4,1947.8,0.67632696]
[1772206797158,1.2840737,1948.5,1947.8,0.67632696]
[1772206797358,0.001,1948.5,1947.8,0.67632696]
[1772206797568,0.69192636,1948.4,1947.8,0.0011]
[1772206797869,1.9750963,1948.3,1947.8,0.0011]
[1772206798178,1.94592636,1948.2,1947.8,0.0011]
[1772206799856,1.28330167,1948.1,1947.8,0.0011]
[1772206800856,1.97522803,1948.1,1947.8,0.0011]
[1772206801627,1.254,1948.2,1947.8,0.0011]
[1772206801831,2.53723715,1948.2,1947.8,0.67632696]
[1772206802781,1.254,1948.2,1947.8,1.95982525]
[1772206803831,2.53724132,1948.2,1947.8,0.67632696]
[1772206804235,3.22916768,1948.2,1947.8,0.0011]
[1772206804666,2.53724132,1948.2,1947.8,0.0011]
[1772206804883,0.69192636,1948.1,1947.7,0.0011]
[1772206805162,0.69192636,1948.1,1947.5,0.0011]
[1772206805960,1.97529391,1948.0,1947.5,0.0011]
[1772206806130,1.28336755,1948.0,1947.5,0.0011]
[1772206806334,6.38706259,1948.2,1947.5,0.67632696]
[1772206806335,2.53723667,1948.2,1947.5,0.67632696]
[1772206807272,2.54410965,1948.4,1947.6,0.67522696]
[1772206807638,3.23603601,1948.4,1947.6,0.67522696]
[1772206807837,0.69192636,1948.3,1947.8,0.0011]
[1772206808070,1.2832358,1948.2,1947.8,0.0011]
[1772206808366,0.69292636,1948.1,1947.8,0.0011]
[1772206808667,0.69192636,1947.9,1947.7,0.0011]
[1772206810264,1.28349933,1947.8,1947.5,0.0011]
[1772206811065,1.96761504,1947.8,1947.0,1.97310214]
[1772206811270,1.28347881,1947.9,1947.1,0.68754154]
[1772206812174,1.28347881,1947.9,1947.2,1.97143636]
[1772206812354,1.96759452,1947.9,1947.2,0.68754154]
[1772206814678,6.39459313,1948.0,1947.3,1.97137043]
[1772206815010,1.28432629,1948.1,1947.4,0.68754154]
[1772206816268,0.001,1948.1,1947.4,1.70954154]
[1772206816474,0.001,1948.1,1947.5,0.68754154]
[1772206817101,0.001,1948.1,1947.7,0.68754154]
[1772206819492,0.001,1948.1,1947.7,1.97107009]
[1772206820086,0.001,1948.1,1947.7,1.97110076]
[1772206820293,0.68511571,1948.1,1947.2,0.68754154]
[1772206820593,0.68411571,1947.9,1947.7,0.0011]
[1772206820765,1.94811571,1947.9,1947.7,0.0011]
[1772206820961,0.68411571,1947.8,1947.5,0.0011]
[1772206821489,1.28356523,1947.7,1947.5,0.0011]
[1772206825292,1.2843546,1948.1,1947.5,0.68864154]
[1772206825588,0.001,1948.1,1947.5,0.68864154]
[1772206826163,0.001,1948.1,1947.7,0.68754154]
[1772206828269,0.68511571,1948.1,1947.5,0.68864154]
[1772206828473,1.95411571,1948.1,1947.5,1.97233329]
[1772206828666,1.95411571,1948.1,1947.5,0.68864154]
[1772206829085,1.27,1948.1,1947.6,0.68754154]
[1772206829795,0.001,1948.1,1947.6,0.68754154]
[1772206830500,0.001,1948.1,1947.6,1.97116909]
[1772206831292,0.001,1948.1,1947.6,1.97116392]
[1772206832000,1.28404307,1948.5,1947.8,0.68754154]
[1772206832505,1.28404307,1948.5,1947.9,1.28343344]
[1772206832673,1.28404307,1948.5,1947.8,0.68754154]
[1772206832880,0.68411571,1948.4,1947.8,0.68754154]
[1772206833284,0.001,1948.0,1947.8,1.97103793]
[1772206833703,0.001,1948.0,1947.8,0.68754154]
[1772206833884,0.001,1948.0,1947.6,1.97224429]
[1772206834702,0.001,1948.0,1947.6,0.68864154]
[1772206835125,0.001,1948.0,1947.6,1.97226704]
[1772206835399,0.001,1948.0,1947.6,0.0011]
[1772206835400,0.68511571,1948.0,1947.6,0.0011]
[1772206835608,0.68411571,1947.8,1947.3,0.0011]
[1772206836315,0.68411571,1947.8,1947.0,0.00153886]
[1772206836316,0.68411571,1947.6,1947.0,0.00153886]
[1772206836474,0.68411571,1947.4,1946.6,0.68754154]
[1772206836905,0.68411571,1947.4,1946.6,1.97182504]
[1772206837526,0.68411571,1947.4,1946.6,0.68754154]
[1772206838298,0.68411571,1947.4,1946.6,1.9718268]
[1772206838498,0.68411571,1947.4,1946.6,0.68754154]
[1772206838695,1.28382889,1947.3,1946.6,0.68754154]
[1772206839414,1.28381508,1947.4,1946.7,0.65991354]
[1772206841081,3.36001137,1947.1,1946.5,0.0011]
[1772206841281,1.267,1947.1,1946.5,2.00032362]
[1772206841483,1.267,1947.1,1946.5,0.71597537]
[1772206841709,0.69858715,1946.9,1946.4,0.0011]
[1772206842111,0.69858715,1946.9,1946.2,0.0011]
[1772206842288,0.69858715,1946.9,1946.0,0.71641423]
[1772206842490,0.69858715,1946.6,1946.0,0.00153886]
[1772206842814,1.267,1946.5,1946.0,0.00153886]
[1772206843224,5.34302104,1946.4,1945.8,0.0011]
[1772206843431,1.28442252,1946.4,1945.8,0.71597537]
[1772206845318,1.28442252,1946.4,1945.8,2.00078363]
[1772206845896,5.13769009,1946.8,1945.8,2.00078363]
[1772206845897,5.13651103,1946.9,1945.9,0.71487537]
[1772206846208,5.13651103,1946.9,1946.5,0.0011]
[1772206846907,5.83509818,1946.9,1946.5,0.0011]
[1772206847690,5.13651103,1946.9,1946.5,0.0011]
[1772206848091,5.83509818,1946.9,1946.5,0.0011]
[1772206848515,1.28409266,1946.9,1946.5,0.0011]
[1772206849926,0.00153886,1947.0,1946.5,0.71597537]
[1772206850423,1.269,1947.1,1946.6,0.71487537]
[1772206850790,1.28354612,1947.8,1946.6,0.71487537]
[1772206851002,1.28594514,1948.0,1946.8,0.71487537]
[1772206851217,2.55994514,1948.0,1947.0,0.71487537]
[1772206851517,2.55994514,1948.0,1947.2,0.71487537]
[1772206852027,0.00253886,1948.0,1947.2,0.71487537]
[1772206852193,6.40655325,1948.4,1947.1,3.68794923]
[1772206852194,1.274,1948.4,1947.3,0.71487537]
[1772206852550,2.55710767,1948.4,1947.5,0.71487537]
[1772206853019,1.274,1948.4,1947.5,0.71487537]
[1772206853527,1.274,1948.4,1947.7,0.71487537]
[1772206853822,2.55711208,1948.4,1947.7,0.71487537]
[1772206855627,2.55711208,1948.4,1947.7,1.99838504]
[1772206856213,1.274,1948.4,1947.8,0.71487537]
[1772206856421,2.55710958,1948.4,1947.8,0.71487537]
[1772206856737,0.001,1948.5,1947.8,0.71487537]
[1772206857115,1.28405104,1948.5,1947.8,0.71487537]
[1772206857316,0.001,1948.5,1947.8,0.71487537]
[1772206857516,0.001,1948.5,1948.0,0.71487537]
[1772206857827,0.001,1948.8,1948.2,0.71487537]
[1772206858226,1.28385033,1948.8,1948.2,0.71487537]
[1772206858426,0.001,1948.8,1948.2,0.71487537]
[1772206858833,0.001,1948.3,1948.2,0.71487537]
[1772206859132,0.001,1948.8,1948.2,0.71487537]
[1772206860315,0.001,1948.8,1948.3,1.28316994]
[1772206860630,0.69958715,1948.8,1947.9,1.99828999]
[1772206860933,1.272,1948.7,1947.9,1.99828999]
[1772206861330,0.69858715,1948.5,1947.6,1.99846134]
[1772206861528,1.272,1948.7,1947.4,1.28376296]
[1772206861529,3.10257562,1948.3,1947.4,1.28376296]
[1772206861740,1.97058715,1948.2,1947.4,0.71487537]
[1772206862029,2.40398847,1948.0,1947.2,0.71487537]
[1772206862231,1.28336755,1948.0,1947.2,1.99871901]
[1772206862432,2.55526793,1948.2,1947.3,0.71487537]
[1772206862631,0.69858715,1948.7,1947.5,0.71487537]
[1772206862632,1.28290655,1948.7,1947.5,0.71487537]
[1772206862811,1.28290655,1948.7,1947.7,0.71487537]
[1772206863337,2.40398847,1948.5,1947.7,0.71487537]
[1772206863517,3.10257562,1948.5,1947.7,0.71487537]
[1772206863707,1.272,1948.4,1947.5,0.71487537]
[1772206864345,3.10257562,1948.2,1947.2,0.71487537]
[1772206864647,1.28316994,1948.3,1947.2,0.71487537]
[1772206865441,1.28290655,1948.7,1947.6,0.71487537]
[1772206865614,1.28290655,1948.7,1947.8,0.71487537]
[1772206865941,2.55588713,1948.8,1947.8,0.71487537]
[1772206866343,2.55588713,1948.8,1948.0,0.71487537]
[1772206866845,2.55584569,1948.8,1948.0,0.71487537]
[1772206867211,1.28384489,1948.8,1948.0,0.71487537]
[1772206867413,0.001,1948.8,1948.0,0.71487537]
[1772206867922,1.2838412,1948.8,1948.0,0.71487537]
[1772206868320,3.6870106,1948.6,1947.8,1.2834448]
[1772206868627,1.28302213,1948.6,1947.8,1.99832017]
[1772206869929,2.55392004,1948.7,1947.9,0.71487537]
[1772206870115,1.271,1948.7,1947.9,0.71487537]
[1772206870311,2.55391329,1948.7,1948.0,0.64110713]
[1772206870512,5.66410487,1948.7,1947.9,1.2833797]
[1772206870944,5.66410487,1948.7,1947.8,1.28345199]
[1772206871240,0.70620311,1948.6,1947.8,1.28345199]
[1772206872340,1.28303823,1948.5,1947.8,1.28345199]
[1772206872656,1.98921852,1948.6,1947.8,1.28345199]
[1772206875660,1.98921852,1948.6,1947.7,6.79724913]
[1772206875661,0.70620311,1948.5,1947.7,0.64110713]
[1772206875829,3.11019158,1948.1,1947.6,1.28472516]
[1772206876030,0.70620311,1948.4,1947.6,1.92583229]
[1772206876245,0.70720311,1948.7,1947.7,0.64110713]
[1772206876449,0.70720311,1948.7,1947.9,0.64110713]
[1772206876620,0.001,1948.7,1947.9,0.64110713]
[1772206876821,0.001,1948.7,1948.0,1.92447468]
[1772206879242,0.70720311,1948.7,1948.0,2.30536389]
[1772206881050,1.99014298,1948.7,1948.0,2.30536389]
[1772206882227,1.99014298,1948.7,1948.0,1.28336389]
[1772206882576,0.70620311,1948.6,1948.0,1.28336389]
[1772206882936,1.98919273,1948.6,1948.0,1.28336389]
[1772206883444,0.70620311,1948.6,1948.0,1.28336389]
[1772206883827,1.28393961,1948.7,1948.1,0.0011]
[1772206884139,0.001,1948.6,1948.1,0.0011]
[1772206886760,0.70720311,1948.6,1948.0,0.0011]
[1772206887434,0.001,1948.6,1948.0,0.64220713]
[1772206887960,0.001,1948.6,1948.1,1.28330167]
[1772206890361,0.70620311,1948.5,1948.0,1.28442047]
[1772206891352,0.001,1948.6,1948.2,0.64110713]
[1772206891660,0.70720311,1948.6,1948.0,0.0011]
[1772206891960,0.70620311,1948.4,1948.0,0.0011]
[1772206892160,0.70620311,1948.3,1947.8,0.0011]
[1772206893636,1.98924134,1948.5,1947.8,0.0011]
[1772206894160,5.13315293,1948.6,1947.8,0.0011]
[1772206894161,1.28398325,1948.6,1947.8,0.64220713]
[1772206894458,1.28397676,1948.6,1947.8,0.64220713]
[1772206894830,1.28397453,1948.6,1947.8,0.64220713]
[1772206895033,1.28397453,1948.6,1947.9,1.66910713]
[1772206896471,0.001,1948.6,1948.0,1.28336755]
[1772206896958,0.001,1948.6,1948.1,0.64110713]
[1772206898343,0.001,1948.6,1948.2,1.2832358]
[1772206898543,0.001,1948.6,1948.3,0.64110713]
[1772206900273,0.001,1948.8,1948.4,0.66085345]
[1772206900766,0.001,1948.8,1948.5,1.28303823]
[1772206901480,0.001,1948.8,1948.4,2.97591113]
[1772206902666,0.001,1948.8,1948.4,1.94391113]
[1772206902866,0.001,1948.8,1948.4,2.97791113]
[1772206903070,0.001,1948.8,1948.4,2.31705768]
[1772206903258,0.001,1948.8,1948.3,5.13255039]
[1772206903259,0.68847678,1948.8,1948.0,5.79430186]
[1772206905459,1.97132743,1948.8,1948.1,0.66085345]
[1772206905659,0.68847678,1948.8,1948.1,1.69685345]
[1772206905863,0.68847678,1948.8,1948.2,0.66085345]
[1772206906568,0.001,1948.8,1948.2,0.66085345]
[1772206907658,0.001,1948.8,1948.4,0.66085345]
[1772206909888,0.001,1948.8,1948.5,1.28303823]
[1772206910288,0.001,1948.8,1948.5,1.94389168]
[1772206910794,0.001,1948.7,1948.5,1.94389168]
[1772206911501,0.00153886,1949.0,1948.6,1.039]
[1772206911679,0.68901564,1949.0,1948.6,1.04]
[1772206912066,0.68901564,1949.0,1948.6,2.32290895]
[1772206912279,0.68901564,1949.0,1948.6,1.28290895]
[1772206912680,0.68901564,1949.0,1948.5,2.32298758]
[1772206912876,0.68747678,1948.9,1948.4,1.28304102]
[1772206913063,0.68747678,1948.9,1948.4,2.32304102]
[1772206913262,0.68747678,1948.9,1948.4,2.32404102]
[1772206913568,0.00153886,1949.0,1948.5,0.66085345]
[1772206914180,0.00153886,1949.0,1948.6,1.28297239]
[1772206914688,0.00153886,1949.0,1948.7,0.66085345]
[1772206915373,0.00153886,1949.0,1948.6,1.28297239]
[1772206916472,0.00153886,1949.0,1948.7,0.66085345]
[1772206917889,0.001,1949.4,1948.9,0.66085345]
[1772206918204,0.68747678,1949.9,1948.9,0.66085345]
[1772206918499,1.96965956,1949.8,1949.1,1.28264327]
[1772206918793,0.68747678,1949.8,1949.2,0.66085345]
[1772206919098,0.00153886,1950.0,1949.4,0.66085345]
[1772206919883,0.00153886,1950.0,1949.5,1.046]
[1772206920497,0.00153886,1950.0,1949.4,0.66085345]
[1772206920692,0.00153886,1950.0,1949.3,1.046]
[1772206920693,0.68901564,1950.0,1949.3,1.046]
[1772206921602,0.68901564,1950.0,1949.2,1.045]
[1772206921999,0.68901564,1950.0,1948.9,5.13106931]
[1772206922401,0.68747678,1949.8,1949.1,1.28264327]
[1772206923303,0.001,1949.9,1949.2,0.66085345]
[1772206924200,0.68747678,1949.8,1949.0,2.32770672]
[1772206924400,1.96972533,1949.7,1949.0,2.32770672]
[1772206926407,1.28238009,1949.5,1949.0,1.046]
[1772206926611,1.96984367,1949.6,1949.0,2.32870442]
[1772206927814,1.96984367,1949.6,1948.7,0.66085345]
[1772206927815,0.68747678,1949.5,1948.7,0.66085345]
[1772206929601,1.28244588,1949.4,1948.8,1.28284072]
[1772206929985,1.9699084,1949.5,1948.8,1.28284072]
[1772206930218,1.28235733,1949.6,1948.9,0.62674971]
[1772206930617,1.90460448,1949.6,1948.9,0.62674971]
[1772206930995,0.62224715,1949.5,1948.9,0.62674971]
[1772206931385,0.62224715,1949.4,1948.5,0.0011]
[1772206931589,0.62224715,1949.0,1948.5,0.0011]
[1772206934913,1.88124715,1949.3,1948.5,0.0011]
[1772206935218,0.62224715,1949.2,1948.5,0.0011]
[1772206936104,0.62224715,1949.2,1948.6,0.0011]
[1772206936708,0.29269436,1949.3,1948.6,0.0011]
[1772206936906,1.90452904,1949.7,1948.9,1.28277489]
[1772206937215,0.62224715,1949.6,1948.8,2.9555887]
[1772206937724,0.62224715,1949.6,1948.9,0.62674971]
[1772206938499,0.62224715,1949.6,1948.8,2.32883899]
[1772206938894,0.62224715,1949.6,1948.8,2.9555887]
[1772206939415,0.62224715,1949.4,1948.8,1.28283899]
[1772206939609,0.62224715,1949.4,1948.8,1.046]
[1772206939813,0.62224715,1949.4,1948.8,2.32882067]
[1772206940525,1.28238009,1949.5,1948.8,2.95557038]
[1772206941023,1.28238009,1949.5,1948.6,0.62784971]
[1772206941024,0.62224715,1949.4,1948.6,0.62784971]
[1772206941332,0.62224715,1949.4,1948.6,0.0011]
[1772206941333,0.62224715,1949.3,1948.6,0.0011]
[1772206941495,0.62224715,1949.1,1948.6,0.0011]
[1772206943817,1.90495623,1949.0,1948.6,0.0011]
[1772206945113,3.35636351,1948.7,1947.6,0.0011]
[1772206945425,0.62224715,1948.2,1947.6,1.28471531]
[1772206945832,2.54513607,1948.4,1947.6,0.62784971]
[1772206946221,3.16738322,1948.4,1947.6,0.62784971]
[1772206947814,1.88424715,1948.4,1947.6,0.62784971]
[1772206948015,1.90520576,1948.7,1947.8,0.62674971]
[1772206948747,0.62378601,1949.0,1947.8,0.62674971]
[1772206949038,1.90652682,1949.0,1947.9,0.62674971]
[1772206949212,1.90652682,1949.0,1948.1,0.62674971]
[1772206949538,3.35636351,1949.4,1948.1,0.62674971]
[1772206949539,1.90450579,1949.7,1948.6,0.62674971]
[1772206949720,1.90450579,1949.7,1948.8,0.62674971]
[1772206949918,0.001,1949.8,1949.0,0.62674971]
[1772206950422,0.62324715,1949.8,1948.9,1.28277489]
[1772206950823,0.001,1949.5,1948.9,2.32777489]
[1772206951234,0.001,1949.5,1948.9,2.9545246]
[1772206951620,0.001,1949.5,1948.9,2.32777489]
[1772206953514,0.001,1949.5,1948.9,1.28277489]
[1772206953717,0.001,1949.5,1949.0,1.046]
[1772206954217,1.28338009,1949.5,1949.0,2.32868724]
[1772206954824,1.28338009,1949.5,1948.7,1.28285259]
[1772206955031,0.62224715,1949.4,1948.7,1.047]
[1772206955942,0.62224715,1949.4,1948.3,1.67374971]
[1772206956332,1.90475882,1949.3,1948.4,1.28310408]
[1772206956845,0.62224715,1949.2,1948.4,1.28310408]
[1772206957942,0.62224715,1949.2,1948.5,1.047]
[1772206958515,1.28264327,1949.1,1948.5,1.047]
[1772206958715,1.8693895,1949.1,1948.4,1.046]
[1772206960133,1.8693895,1949.1,1948.3,1.90991701]
[1772206960339,1.8693895,1949.1,1948.5,1.046]
[1772206960852,1.8693895,1949.1,1948.5,2.32903414]
[1772206961153,1.28257573,1949.3,1948.5,2.91646636]
[1772206961519,1.90710071,1949.3,1948.6,1.046]
[1772206962643,1.90710071,1949.3,1948.6,1.0471]
[1772206963153,1.28347544,1949.4,1948.7,1.87033877]
[1772206963361,1.28345038,1949.4,1948.7,1.87033877]
[1772206963529,0.001,1949.4,1948.8,0.58743222]
[1772206965020,0.62552498,1949.4,1948.8,1.28279475]
[1772206965228,0.62552498,1949.4,1948.8,1.047]
[1772206965552,0.62552498,1949.4,1948.6,1.28403427]
[1772206965853,0.62552498,1949.4,1948.6,2.33103427]
[1772206966732,0.62552498,1949.4,1948.7,0.58743222]
[1772206966935,1.28251167,1949.3,1948.7,1.87028129]
[1772206967135,1.28251167,1949.3,1948.7,2.91628129]
[1772206968553,1.90703665,1949.3,1948.7,2.32884907]
[1772206968734,1.90703665,1949.3,1948.7,1.28284907]
[1772206969051,1.90703665,1949.3,1948.6,0.0011]
[1772206969255,1.90703665,1949.3,1948.7,1.047]
[1772206972682,1.90703665,1949.3,1948.8,1.28284072]
[1772206972832,0.001,1949.4,1948.9,0.58743222]
[1772206974432,0.001,1949.4,1948.9,1.63543222]
[1772206975333,0.001,1949.4,1949.1,0.58743222]
[1772206975534,0.001,1949.5,1949.1,0.58743222]
[1772206976580,0.001,1949.2,1949.1,0.58743222]
[1772206977084,0.001,1949.5,1949.1,0.58743222]
[1772206977449,0.001,1949.5,1949.3,0.58743222]
[1772206978057,0.001,1949.5,1949.4,1.051]
[1772206980277,0.001,1949.5,1949.0,1.8701413]
[1772206980476,0.001,1949.5,1949.1,1.054]
[1772206981555,0.62552498,1949.5,1948.8,0.58853222]
[1772206981762,0.62552498,1949.5,1948.9,1.64243222]
[1772206981981,0.62552498,1949.5,1948.9,0.58743222]
[1772206982358,1.28244588,1949.4,1948.9,2.92517308]
[1772206982682,1.90790507,1949.5,1948.9,2.92517308]
[1772206983267,0.001,1949.5,1949.0,0.58743222]
[1772206984556,0.001,1949.5,1949.0,1.87007716]
[1772206984750,0.001,1949.5,1949.1,0.58743222]
[1772206986783,0.001,1949.5,1949.1,1.058]
[1772206987756,0.001,1949.5,1949.1,1.64543222]
[1772206988570,0.001,1949.5,1949.1,1.64753222]
[1772206988982,0.001,1949.4,1949.1,2.34270907]
[1772206990865,5.12993005,1949.8,1949.4,0.58979437]
[1772206990866,0.001,1949.8,1949.4,0.58979437]
[1772206991180,0.57369104,1950.3,1949.7,0.58979437]
[1772206991376,1.85543812,1950.5,1949.8,1.65179437]
[1772206991558,0.57369104,1950.5,1949.9,1.062]
[1772206992569,1.8554157,1950.5,1949.9,1.062]
[1772206992770,0.57369104,1950.4,1949.9,1.062]
[1772206992971,0.57369104,1950.4,1950.0,1.28205128]
[1772206993269,5.12764562,1950.6,1950.0,1.28205128]
[1772206993270,0.001,1950.6,1950.1,0.58979437]
[1772206993673,1.28265846,1950.6,1950.1,0.58979437]
[1772206993991,1.28266116,1950.6,1950.1,1.062]
[1772206994297,0.001,1950.6,1950.1,1.062]
[1772206994899,0.001,1950.6,1950.2,1.2819198]
[1772206996895,0.001,1950.6,1950.1,1.062]
[1772206997089,0.001,1950.6,1950.1,2.34594074]
[1772206997670,0.5752299,1951.0,1950.2,0.58979437]
[1772206997864,0.00153886,1951.0,1950.4,0.58979437]
[1772206998092,0.00153886,1951.0,1950.5,1.064]
[1772206998300,0.5752299,1951.0,1950.3,1.28180978]
[1772206999697,0.5752299,1951.0,1950.4,0.58979437]
[1772206999901,0.00153886,1951.0,1950.4,0.58979437]
[1772207000392,0.00153886,1951.0,1950.5,1.28172263]
[1772207001996,0.00153886,1951.0,1950.5,2.34772263]
[1772207002195,0.00153886,1951.0,1950.6,0.58979437]
[1772207002378,0.00153886,1951.0,1950.7,1.28159122]
[1772207002580,0.57369104,1951.4,1950.8,0.58979437]
[1772207002890,1.85483633,1951.4,1950.9,1.066]
[1772207003401,0.57369104,1951.4,1950.9,1.066]
[1772207004506,0.57369104,1951.4,1951.0,1.28139415]
[1772207005002,0.57369104,1951.4,1950.9,2.34741153]
[1772207005207,0.57369104,1951.6,1951.0,0.58979437]
[1772207005379,0.57369104,1951.9,1951.0,0.58979437]
[1772207005776,0.57369104,1951.9,1951.1,1.067]
[1772207006099,1.28232879,1952.0,1951.0,1.067]
[1772207006100,0.57369104,1951.7,1951.0,1.067]
[1772207006310,1.85469124,1951.6,1951.0,2.34832902]
[1772207006808,1.85469124,1951.6,1950.9,5.71541164]
[1772207006809,0.57369104,1951.6,1950.9,0.58979437]
[1772207007732,0.57369104,1951.6,1950.8,1.28152552]
[1772207007876,0.57369104,1951.6,1950.7,5.71603562]
[1772207007877,0.57369104,1951.6,1950.7,2.93833381]
[1772207008076,0.57369104,1951.6,1950.7,1.87133381]
[1772207008410,0.57369104,1951.4,1950.8,1.28147989]
[1772207009989,0.57369104,1951.4,1950.8,1.068]
[1772207010194,0.57369104,1951.4,1950.7,2.34959122]
[1772207010501,0.57369104,1951.2,1950.7,1.28159122]
[1772207011477,0.57369104,1951.2,1950.4,0.0011]
[1772207011678,0.57369104,1951.0,1950.4,1.28288358]
[1772207011880,0.57369104,1951.0,1950.4,1.28288623]
[1772207012506,0.57369104,1950.8,1950.4,0.0011]
[1772207014725,0.57369104,1950.6,1950.4,0.0011]
[1772207015025,0.57369104,1950.6,1950.1,0.0011]
[1772207015915,0.57369104,1950.4,1950.1,0.0011]
[1772207016504,0.57369104,1950.2,1950.1,0.0011]
[1772207018736,0.55170107,1950.1,1949.3,0.57732538]
[1772207018901,0.55170107,1950.1,1949.4,0.57732538]
[1772207019101,0.55170107,1950.1,1949.4,1.64432538]
[1772207019297,0.55170107,1950.1,1949.2,5.70762709]
[1772207019531,0.55170107,1950.1,1949.3,0.57732538]
[1772207021003,1.86182918,1950.0,1949.4,1.28244588]
[1772207022427,0.5797779,1950.0,1949.4,1.82755686]
[1772207023430,1.28211703,1949.9,1949.4,1.82755686]
[1772207025210,1.86189493,1949.9,1949.4,1.82755686]
[1772207025519,0.5797779,1949.9,1949.4,1.82755686]
[1772207025958,0.5797779,1949.8,1949.1,0.0011]
[1772207026118,0.5797779,1949.5,1949.0,0.00263886]
[1772207026639,0.5797779,1949.5,1948.8,0.0011]
[1772207026640,0.5797779,1949.3,1948.8,0.0011]
[1772207027736,1.86235536,1949.2,1948.8,0.0011]
[1772207027942,0.5797779,1949.2,1948.8,0.0011]
[1772207028510,1.262,1949.5,1948.8,0.54621098]
[1772207028708,2.54438374,1949.5,1948.8,0.54621098]
[1772207028910,1.86209665,1949.6,1949.0,0.54511098]
[1772207029752,1.86209665,1949.6,1949.4,0.0011]
[1772207030445,1.28228175,1949.7,1949.4,0.0011]
[1772207030749,1.86196419,1949.8,1949.4,0.0011]
[1772207032819,0.5797779,1949.7,1949.4,0.0011]
[1772207033018,0.5797779,1949.7,1949.2,0.0011]
[1772207033220,0.5797779,1949.6,1949.2,0.0011]
[1772207034128,0.5797779,1949.5,1949.2,0.0011]
[1772207037037,1.86222378,1949.4,1949.2,0.0011]
[1772207037340,0.5797779,1949.4,1949.2,0.0011]
[1772207039223,1.28244855,1949.4,1948.8,0.0011]
[1772207039430,0.5797779,1949.3,1948.8,0.0011]
[1772207039761,0.5797779,1949.3,1948.8,1.28393873]
[1772207041242,1.86235536,1949.2,1948.8,0.0011]
[1772207041440,0.5797779,1949.1,1948.6,0.0011]
[1772207041826,0.5797779,1949.1,1948.9,0.0011]
[1772207042023,0.5797779,1949.2,1948.6,1.28405763]
[1772207042231,0.5797779,1949.2,1948.7,0.54511098]
[1772207042436,0.5797779,1949.2,1948.6,1.28405763]
[1772207042647,0.5797779,1949.2,1948.6,0.0011]
[1772207043434,0.5797779,1949.0,1948.6,0.0011]
[1772207044348,1.274,1949.3,1948.6,0.54621098]
[1772207044522,2.55651188,1949.3,1948.6,0.54621098]
[1772207044724,1.274,1949.3,1948.6,0.54621098]
[1772207044928,0.001,1949.5,1948.8,0.54511098]
[1772207045332,1.28339028,1949.5,1948.8,0.54511098]
[1772207045533,1.86316818,1949.5,1948.9,1.28277489]
[1772207045735,1.86316818,1949.5,1948.9,1.82788587]
[1772207046155,1.86316818,1949.5,1948.9,0.54511098]
[1772207047851,0.001,1949.5,1949.1,0.54511098]
[1772207048649,1.28338032,1949.5,1949.1,0.54511098]
[1772207048852,0.001,1949.5,1949.1,0.54511098]
[1772207049162,1.28340155,1949.5,1949.1,0.54511098]
[1772207049330,1.28338072,1949.5,1949.1,0.54511098]
[1772207049652,0.001,1949.5,1949.1,1.82775398]
[1772207051231,0.001,1949.5,1949.1,0.54511098]
[1772207051432,0.58021744,1949.5,1948.7,0.5419055]
[1772207051651,0.58021744,1949.5,1948.8,0.5419055]
[1772207051855,1.86166332,1949.4,1948.8,1.82470711]
[1772207053536,0.57921744,1949.4,1948.9,0.5419055]
[1772207053851,0.001,1949.5,1949.1,0.5419055]
[1772207054446,0.001,1949.5,1949.2,0.5419055]
[1772207056040,0.001,1949.5,1949.2,1.82447132]
[1772207057738,0.001,1949.5,1949.3,0.5419055]
[1772207058374,0.00153886,1950.0,1949.5,0.5419055]
[1772207060173,1.28213629,1949.9,1949.4,1.82435138]
[1772207060374,0.00153886,1950.0,1949.4,1.82435138]
[1772207060544,2.55681284,1950.4,1949.6,0.5419055]
[1772207060748,1.275,1950.4,1949.8,0.5419055]
[1772207061251,0.001,1950.7,1949.8,0.5419055]
[1772207061766,1.28260909,1950.7,1949.8,0.5419055]
[1772207062575,0.001,1950.7,1950.0,0.5419055]
[1772207062789,0.001,1950.7,1950.2,0.5419055]
[1772207062969,0.001,1950.7,1950.4,0.5419055]
[1772207063549,0.001,1950.7,1950.2,0.5419055]
[1772207064849,0.001,1950.7,1950.3,1.28185407]
[1772207065052,0.001,1950.7,1950.2,1.8237727]
[1772207065772,0.58021744,1950.7,1949.8,5.6705906]
[1772207065985,0.57921744,1950.6,1949.7,2.9001075]
[1772207066166,0.57921744,1950.6,1949.8,0.5419055]
[1772207066355,0.001,1950.7,1949.8,0.5419055]
[1772207066675,0.001,1950.7,1949.7,1.282202]
[1772207066676,0.001,1950.7,1950.0,0.5419055]
[1772207067246,0.001,1950.6,1950.1,1.28198553]
[1772207068277,0.001,1950.6,1949.8,0.5419055]
[1772207068278,0.58021744,1950.6,1949.8,0.5419055]
[1772207068491,0.57921744,1950.5,1949.7,1.076]
[1772207068649,0.57921744,1950.5,1949.7,1.6179055]
[1772207069266,0.57921744,1950.3,1949.6,1.28335259]
[1772207069698,0.57921744,1950.3,1949.6,1.82525809]
[1772207070580,0.57921744,1950.3,1949.6,0.0011]
[1772207070771,0.57921744,1950.2,1949.6,0.0011]
[1772207071153,1.28198553,1950.1,1949.6,0.0011]
[1772207071370,1.86120297,1950.1,1949.6,0.0011]
[1772207071566,0.57921744,1950.0,1949.6,0.0011]
[1772207073362,1.28211703,1949.9,1949.6,0.0011]
[1772207073757,1.86133447,1949.9,1949.6,0.0011]
[1772207075756,1.28210187,1950.0,1949.6,0.0011]
[1772207076161,1.86131931,1950.0,1949.6,0.0011]
[1772207078084,3.13311735,1950.3,1949.6,0.5430055]
[1772207078381,1.272,1950.3,1949.6,0.5430055]
[1772207078572,0.57921744,1950.5,1949.7,0.56472571]
[1772207078900,1.86096553,1950.5,1949.7,0.56472571]
[1772207079582,1.86096553,1950.5,1949.7,0.56582571]
[1772207079777,1.86096553,1950.5,1949.8,1.84690849]
[1772207079985,0.001,1949.9,1949.8,1.84690849]
[1772207083093,0.001,1949.9,1949.7,0.0011]
[1772207083961,0.5258742,1949.9,1949.5,0.0011]
[1772207085101,1.28218278,1949.8,1949.5,0.0011]
[1772207085331,0.001,1949.9,1949.5,0.57492133]